Cogmind - Beta 9.4 @@@ ROGUE MODE // 2020.01.29 @ 20:29:17 Player: Judas Result: Destroyed by D-53 Grenadier with Mini Grenade Launcher Performance ------------- Evolutions (0) 0 Regions Visited (2) 400 Robots Destroyed (13) 65 Value Destroyed (101) 101 Prototype IDs (0) 0 Alien Tech Used (0) 0 Bonus (7) 7 TOTAL SCORE: 573 Bonus ------- Follower Combat Kills 7 Cogmind --------- Core Integrity 0/250 Matter 242/300 Energy 85/100 System Corruption 9% Temperature Cool (0) Movement Rolling (80) Location -10/Mines Parts ------- > --- POWER (1) -------- (None) > --- PROPULSION (2) --- Wheel Wheel > --- UTILITY (2) ------ Medium Storage Unit > --- WEAPON (2) ------- (None) > --- INVENTORY (8) ---- Wheel Flight Unit Improved Signal Interpreter Light Armor Plating Peak State ------------ > --- POWER ------------ Light Ion Engine > --- PROPULSION ------- Wheel Compact Wheel > --- UTILITY ---------- Medium Storage Unit Medium Storage Unit > --- WEAPON ----------- EM Pulse Gun Small Laser > --- INVENTORY -------- Light Ion Engine Light Treads Light Treads Wheel Wheel Flight Unit Improved Signal Interpreter Light Armor Plating Assault Rifle Light Assault Rifle [Rating: 8] Favorites ----------- Power Light Ion Engine Engine Light Ion Engine Propulsion Wheel Treads Light Treads Wheel Wheel Utility Medium Storage Unit Storage Medium Storage Unit Weapon Small Laser Energy Gun Small Laser Ballistic Gun Light Assault Rifle Build | -11 -10 -10 ------- Run | Scr Mat Min Slots Evolved . | . . . Power . | . . . Propulsion . | . . . Utility . | . . . Weapon . | . . . Parts Attached 18 | 7 2 9 Power 2 | 1 . 1 Engine 2 | 1 . 1 Core . | . . . Reactor . | . . . Propulsion 6 | 2 . 4 Treads 2 | . . 2 Leg . | . . . Wheel 4 | 2 . 2 Hover . | . . . Flight . | . . . Utility 4 | 2 2 . Device . | . . . Storage 4 | 2 2 . Processor . | . . . Hackware . | . . . Protection . | . . . Artifact . | . . . Weapon 6 | 2 . 4 Energy Gun 2 | 2 . . Energy Cannon . | . . . Ballistic Gun 4 | . . 4 Ballistic Cannon . | . . . Launcher . | . . . Special Weapon . | . . . Impact Weapon . | . . . Slashing Weapon . | . . . Piercing Weapon . | . . . Special Melee Weapon . | . . . Unidentified Prototypes . | . . . Parts Lost 11 | . . 11 Power 2 | . . 2 Propulsion 4 | . . 4 Utility 1 | . . 1 Weapon 4 | . . 4 Highest Loss Streak 4 | . . 4 Average Slot Usage (%) 93 | . 100 88 Engine 12 | . 14 10 Treads 4 | . . 8 Wheel 22 | . 28 18 Storage 27 | . 28 27 Energy Gun 20 | . 28 15 Ballistic Gun 4 | . . 7 Naked Turns . | . . . Heaviest Build 22 | 14 22 22 Greatest Support 40 | 26 26 40 Greatest Overweight (x) 5 | . . 5 Average Overweight (x) . | . . . Largest Inventory Capacity 12 | 8 12 12 Average Capacity 10 | 6 11 11 Most Carried 10 | 6 10 10 Average Carried 7 | 3 7 8 Final Capacity 12 | 8 12 8 Final Carried 10 | 6 10 4 Class Distribution -------------------- 100% | Mutant Dominant Class ---------------- Mutant | -10/Materials Mutant | -10/Mines Resources | -11 -10 -10 ----------- Run | Scr Mat Min Matter Collected 327 | 270 20 37 Remotely . | . . . Salvage Created 297 | 76 120 101 Parts 19 | 1 14 4 Haulers Intercepted . | . . . Recyclers Shooed . | . . . Parts Field Recycled . | . . . Retrieved Matter . | . . . Parts Self-Destructed . | . . . Prevented . | . . . Kills | -11 -10 -10 ------- Run | Scr Mat Min Combat Hostiles Destroyed 11 | . 4 7 Guns 11 | . 4 7 Classes Destroyed 5 | 1 3 1 Worker 1 | . 1 . Recycler 1 | 1 . . Swarmer 5 | . 3 2 Grunt 1 | . 1 . Assembled 5 | . . 5 Best Kill Streak 5 | 1 3 5 Combat Bots Only 5 | . 3 5 Max Kills in Single Turn 1 | 1 1 1 Gunslinging . | . . . Exploded . | . . . Melee . | . . . Uniques/NPCs Destroyed . | . . . Combat | -11 -10 -10 -------- Run | Scr Mat Min Damage Taken 1352 | . 137 1215 Core 261 | . 25 236 Absorbed by Shields . | . . . Core Remaining (%) 100 | 100 . . Volleys Fired 45 | 5 13 27 Largest 2 | 2 2 2 Hottest 80 | 80 80 80 Shots Fired 73 | 10 26 37 Gun 73 | 10 26 37 Cannon . | . . . Launcher . | . . . Special . | . . . Kinetic 27 | . . 27 Thermal 26 | 5 13 8 Explosive . | . . . Electromagnetic 20 | 5 13 2 Robot Hit Streak 5 | 4 5 5 Robot Miss Streak 5 | 4 4 5 Penetration Max . | . . . Secondary Targets 2 | . . 2 Max Gunslinging Chain 1 | . . 1 Shots Hit Robots 37 | 5 12 20 Core Hits 24 | 2 6 16 Critical Hits . | . . . Critical Kills . | . . . Critical Parts Destroyed . | . . . Melee Attacks . | . . . Impact . | . . . Slashing . | . . . Piercing . | . . . Sneak Attacks . | . . . Combat Hostiles . | . . . Follow-up Attacks . | . . . Damage Inflicted 532 | 84 228 220 Guns 460 | 84 161 215 Cannons . | . . . Explosions 67 | . 67 . Melee . | . . . Ramming 5 | . . 5 Kinetic 160 | . . 160 Thermal 198 | 33 122 43 Explosive . | . . . Electromagnetic 169 | 51 106 12 Impact . | . . . Slashing . | . . . Piercing . | . . . Highest Corruption 9 | . . 9 Average Corruption 8 | . . 8 Corruption Purged . | . . . Effects 3 | . . 3 Matter Fused 1 | . . 1 Parts Rejected 1 | . . 1 Data Loss (major) 1 | . . 1 Overload Shots . | . . . Overflow Damage 27 | . 27 . Projectiles . | . . . Explosions 27 | . 27 . Melee . | . . . Knockbacks . | . . . Impact . | . . . Kinetic . | . . . Secondary . | . . . Self-Inflicted Damage 17 | . 15 2 Shots 1 | . 1 . Rammed 1 | . . 1 Targets Rammed 1 | . . 1 Kicked . | . . . Crushed . | . . . Highest Temperature 76 | 54 76 42 Average Temperature 28 | 25 32 22 Received Heat Transfer 156 | . 30 126 Siege Activations . | . . . Robots Corrupted . | . . . Combat Hostiles . | . . . Parts Fried 1 | 1 . . Impact Corruptions . | . . . Robots Melted . | . . . Combat Hostiles . | . . . Parts Melted . | . . . Heat Transferred 400 | 75 225 100 Parts Sabotaged . | . . . Parts Stolen . | . . . Parts Stripped . | . . . Power Chain Reactions 1 | . 1 . Missiles Intercepted . | . . . Alert | -11 -10 -10 ------- Run | Scr Mat Min Peak Influence 146 | 5 146 105 Average Influence 41 | 1 46 49 Maximum Alert Level . | . . . Low Security (%) 100 | 100 100 100 Level 1 . | . . . Level 2 . | . . . Level 3 . | . . . Level 4 . | . . . Level 5 . | . . . High Security . | . . . Max Security . | . . . Squads Dispatched 1 | . 1 . Investigation . | . . . Extermination . | . . . Reinforcement 1 | . 1 . Assault . | . . . Garrison . | . . . Intercept . | . . . Construction Impeded . | . . . Haulers Reinforced . | . . . Stealth | -11 -10 -10 --------- Run | Scr Mat Min Distress Signals 2 | . 2 . Communications Jammed . | . . . Distress Signals . | . . . Times Spotted 31 | . 8 23 Peak Tracking Total 16 | . 3 16 Tactical Retreats 1 | . . 1 Traps | -11 -10 -10 ------- Run | Scr Mat Min Traps Triggered . | . . . Indirectly . | . . . Trap Hack Attempts . | . . . Triggered . | . . . Disarmed . | . . . Reprogrammed . | . . . Reused . | . . . Traps Extracted . | . . . Installed . | . . . Triggered . | . . . Machines | -11 -10 -10 ---------- Run | Scr Mat Min Machines Disabled 1 | . 1 . Max in Single Turn 1 | . 1 . Machines Sabotaged . | . . . Garrisons Compromised . | . . . Overloaded Fab Kills . | . . . Fab Network Shutdowns . | . . . Hacking | -11 -10 -10 --------- Run | Scr Mat Min Machines Accessed 1 | . 1 . Terminals 1 | . 1 . Fabricators . | . . . Repair Stations . | . . . Recycling Units . | . . . Scanalyzers . | . . . Garrison Access . | . . . Total Hacks 3 | . 3 . Successful 2 | . 2 . Failed 1 | . 1 . Catastrophic . | . . . Database Lockouts . | . . . Manual 3 | . 3 . Terminals 3 | . 3 . Fabricators . | . . . Repair Stations . | . . . Recycling Units . | . . . Scanalyzers . | . . . Garrison Access . | . . . Terminal Hacks . | . . . Fabricator Hacks . | . . . Repair Station Hacks . | . . . Recycling Unit Hacks . | . . . Scanalyzer . | . . . Garrison Access Hacks . | . . . Unauthorized Hacks 5 | . 5 . Terminals 2 | . 2 . Track 1 | . 1 . Botnet 1 | . 1 . Fabricators . | . . . Repair Stations . | . . . Recycling Units . | . . . Scanalyzers . | . . . Garrison Access . | . . . Data Cores Recovered . | . . . Used . | . . . Hacking Detections . | . . . Full Trace Events . | . . . Feedback Events . | . . . Feedback Blocked . | . . . Robot Schematics Acquired . | . . . Robots Built . | . . . Matter . | . . . Time . | . . . Total Robot Build Rating . | . . . Part Schematics Acquired . | . . . Parts Built . | . . . Matter . | . . . Time . | . . . Total Part Build Rating . | . . . Parts Repaired . | . . . Time . | . . . Parts Recycled . | . . . Recycled Matter . | . . . Retrieved Matter . | . . . Retrieved Components . | . . . Parts Scanalyzed . | . . . Part Schematics Acquired . | . . . Parts Damaged . | . . . Bothacking | -11 -10 -10 ------------ Run | Scr Mat Min Used RIF Installer . | . . . Robots Hacked . | . . . Non-combat . | . . . Combat . | . . . Robot Hacks Applied . | . . . Relay Couplers Released . | . . . Robots Rewired . | . . . Allies Hacked . | . . . Hacks Repelled . | . . . Allies | -11 -10 -10 -------- Run | Scr Mat Min Total Allies 3 | . . 3 Largest Group 3 | . . 3 Highest-Rated Group 40 | . . 40 Highest-Rated Ally 16 | . . 16 Total Orders . | . . . Ally Attacks 17 | . . 17 Total Damage 157 | . . 157 Kills 1 | . . 1 Allies Corrupted . | . . . Allies Melted . | . . . Intel | -11 -10 -10 ------- Run | Scr Mat Min Robot Analysis Total . | . . . Derelict Logs Recovered . | . . . Drone Launches . | . . . Drone Recoveries . | . . . Exploration | -11 -10 -10 ------------- Run | Scr Mat Min Turns Passed 518 | 80 177 261 Spaces Moved 386 | 57 141 188 Core 6 | 3 . 3 Treads 25 | . . 25 Legs . | . . . Wheels 355 | 54 141 160 Hover . | . . . Flight . | . . . Fastest Speed 50 | 50 90 80 Average Speed 94 | 85 90 101 Slowest Speed 300 | 90 90 300 Overloaded Moves . | . . . Propulsion Burnouts . | . . . Robots Hopped . | . . . Cave-ins Triggered . | . . . Exploration Rate (%) 29 | 3 26 60 Regions Visited 2 Branch Regions 1 Pre-discovered Areas . | . . . Known Exits Taken . | . . . Unknown Exits Taken 2 | 1 1 . Scrap Searched 1 | . . 1 Spaces Dug . | . . . Terrain Destroyed 4 | . 4 . Melee . | . . . Projectile . | . . . AOE 4 | . 4 . Actions | -11 -10 -10 --------- Run | Scr Mat Min Total 465 | 74 165 226 Wait . | . . . Move 384 | 56 140 188 Hop . | . . . Pick Up 13 | 6 6 1 Fast Attach 7 | 7 . . Attach 8 | . . 8 Detach . | . . . Swap 3 | . 2 1 Drop 4 | . 4 . Fire 45 | 5 13 27 Melee . | . . . Ram 1 | . . 1 Kick . | . . . Crush . | . . . Escape Stasis . | . . . Rewire . | . . . Trap . | . . . Miscellaneous . | . . . Route ------- -11/Scrapyard -10/Materials -10/Mines History --------- Turn | Location | Event 13 | -11/Scrapyard | Discovered new exit (range 15) 81 | -11/Scrapyard | Entered Materials 193 | -10/Materials | Discovered new exit (range 10) 258 | -10/Materials | Entered Mines 262 | -10/Mines | Assisted by bots powering up and referring to "LRC-V3" 304 | -10/Mines | Build established: Mutant 394 | -10/Mines | Assembled infested the area 441 | -10/Mines | Core integrity fell below 50% 459 | -10/Mines | Lost 4 parts (1p2n1w) 486 | -10/Mines | Received a Rocket Launcher from a helpful Derelict 513 | -10/Mines | Core integrity fell below 20% 519 | -10/Mines | Destroyed by D-53 Grenadier with Mini Grenade Launcher Last Messages --------------- were you, so I'm going to lend you mine." 00486_ 9D-RTB(g) slips back into the shadows. 00488_ The unstable cave ceiling collapses. 00488_ K-01 Serf collects debris. 00495_ System corrupted: Substantial component data lost. 00495_ K-01 Serf collects debris. 00498_ K-01 Serf destroyed. 00500_ U-05 Engineer lays Concrete. 00501_ The unstable cave ceiling collapses. 00501_ U-05 Engineer lays Concrete. 00506_ Lgt. Treads destroyed. 00506_ U-05 Engineer lays Concrete. 00508_ Lgt. Assault Rifle destroyed. 00508_ Med. Storage Unit destroyed. 00508_ U-05 Engineer destroyed. 00509_ K-01 Serf collects debris. 00512_ System corrupted: Matter fused (-7). 00514_ K-01 Serf destroyed. 00515_ The unstable cave ceiling collapses. 00517_ Acquired Wheel. Map ----- +----------------------------------------------------+ | | | ??????????????????????????????????????????????? | | ??????????????????????????????????????????????? | | ??????????????????????????????????????????????? | | ??????????????????????????????????????????????? | | ??????????????????????????????????????????????? | | ??????????????????????????????????????????????? | | ??????????????????????????????????????????????? | | ??????????????????????????????????????????????? | | ??????????????????????????????????????????????? | | ??????????????????????????????????????????????? | | ??????????????????????????????????????????????? | | ??????????????????????????????????????????????? | | ???????????????????????????""?????????????????? | | ???????????????????????????""?????????????????? | | ??????????????????????????? ?????????????????? | | ??????????????????????????? #?????????????????? | | ??????????????????????????# #?????????????????? | | ??????????????????????????# #????######???????? | | ?????????????????????????? #????# #####???? | | ????????????????????####### #????# ####? | | ????????????????????# # # #????# ## | | ????????????????????# ###### | | ??????????????????### # ## ]% | | ?????????????????## # | | ?????????????????# @ !% d ### | | ?????????????????# ##?# | | ????????????????# # # # ##??## | | ????????????? ?# #????#= | | ?????????? ??## ##????#[ | | ?????????? ???? ## #?????#% | | ????????? ????### ##?????#% | | ????????? ???????##### #?????#% | | ?????????? ????????????####### #????#% | | ?????????? ?????????????????????#### ???#% | | ???????????????????????????????????## #?#* | | ????????????????????????????????????# #?#% | | ????????????????????????????????????? ##?#= | | ????????????????????????????????????? #??#[ | | ????????????????????????????????????? #??#% | | ????????????????????????????????????? ??# | | ?????????????????????????????????????# ??# | | ?????????????????????????????????????????????# | | ?????????????????????????????????????????????# | | ?????????????????????????????????#####???????# | | ????????????????????????????????## ##?????## | | ?????????????????????????####??## #?????# | | ????????????????????????## #### #?????# | | ????????????????????????# ## #????## | | ????????????????????????# ###????# | +----------------------------------------------------+ Best States ------------- Heat Dissipation 25 Energy Generation 10 Energy Capacity 125 Matter Stores 300 Matter Capacity 300 Sight Range 16 Terrain Scan Density 10 Evasion (%) 44 Recoil Reduction 2 Item Schematics ----------------- None Robot Schematics ------------------ None Fabricated ------------ Nothing Alien Tech Used ----------------- None Achievements -------------- None Challenges ------------ None Game ------ Seed HeavyFlightRedistributor Manual? 0 Play Time 00:10:26 Cumulative 35.1 hours Start 2020.01.29 @ 20:16:34 End 2020.01.29 @ 20:29:17 Sessions 1 Manual Loads 0 Difficulty Rogue Special Mode None Game No. 65 Rogue 65 Adventurer 0 Explorer 0 Win Type - Total 0 Types 0/0/0/0/0/0/0 Lore% 25 Gallery% 31 Achievement% 25 Wizard Run 0 Options --------- ASCII 0 Keyboard 0 Movement Mouse Keybinds 0 Fullscreen 2 Font 18/SmallcapsGlow Map View 76x50 Tactical HUD 1 Map Filters NONE Filters NONE Steam 1 RUN: e4438393-4f92-4b39-8902-2c7fe586d0c3